Workbook

Sheet Disclosures
A1: Option 3 Template Disclosures
A3: Option 3 Template is designed as prescribed in Schedule 2.6 of Conservator Rehabilitation Plan and information provided by California Insurance Department Actuary.
A5: DRAFT Template Delivery Date: April 15, 2026 Updated April 30, 2026 for Interest Considerations of Schedule 2.6.
A7: The intended purpose of this Option 3 Template is to help resolve pending and subsequent litigation against California Insurance Company and its affiliates relating to
A8: SolutionOne and EquityComp products.
A10: Actuarial Team:
A11: David S. Wolfe, ACAS, MAAA - Baker Tilly Advisory Group, LP
A12: Morgan Butz, FCAS, MAAA - Lewis & Ellis, LLC
A13: Joe Healey - Baker Tilly Advisory Group, LP
A15: The data included in this template is based on sample files provided by legal counsel for the Conservator and by California Insurance Department Actuary.
A16: The data included may not represent final documents to be provided at a later point.
A17: The data underlying this template has been reviewed for reasonableness and consistency, but has not been audited or verified.
A19: Certain calculations within this Option 3 Template assume paid losses and case reserves are through December 31, 2025.
A21: The template is built for one RPA for 36 month period.
A23: The Restitution Amount payment date per Schedule 2.6, Section VI, Subsection 5a is assumed to be November 1, 2026 for the purpose of this template.

Sheet Index
A1: Please see below for the source for each tab within Schedule 2.6 of Conservator's Rehabilitation Plan for CIC or where guidance from the California Insurance Department Actuary was provided.
A3: Restitution Amount - Schedule 2.6, Section V, Subsection 2
A5: Interest Factor - Based on Schedule 2.6, Section VI Subsection 5
A7: Weighted Average Payment Date - Based on Schedule 2.6, Section VI Subsection 5
A9: Final Cost - Schedule 2.6, Section V, Subsection 2.b and communication with California Insurance Department Actuary
A11: Final Cost Scenarios - Schedule 2.6, Section V, Subsection 2.b
A13: Estimated LPCA - Schedule 2.6, Section V, Subsection 2.b
A15: Actual Losses - Schedule 2.6, Section IV, Subsection 3, Schedule 2.6, Section IV, Subsection 3.c and communication with California Insurance Department Actuary
A17: Loss and DCCE Development - Schedule 2.6, Section IV, Subsection 3.c.i-ii and communication with California Insurance Department Actuary
A19: Tail Factor - Schedule 2.6, Section IV, Subsection 3.iii
A21: Interpolated Development - Schedule 2.6, Section IV, Subsection 3.iv and communication with California Insurance Department Actuary
A23: Surcharge - Policy Year 1 - Communication with California Insurance Department Actuary
A25: Surcharge - Policy Year 2 - Communication with California Insurance Department Actuary
A27: Surcharge - Policy Year 3 - Communication with California Insurance Department Actuary

Sheet Restitution Amount
A1: =Inputs!A1 -> California Insurance Company Rehabilitation Plan
A2: =Inputs!A2 -> Options to Settle Litigation Related to XYZ Company
A3: =Inputs!A3 -> EquityComp and SolutionOne Programs and RPA
A5: Option 3 - Restitution Amount
A7: -1 | B7: Total Payments | C7: =ROUND(Inputs!D53,0) -> 1731228 | E7: From Weighted Average
E8: Payment Date tab, Column (7) total.
A10: =A7-1 -> -2 | B10: Final Cost | C10: =ROUND('Final Cost '!E25,0) -> 1434339 | E10: From Final Cost tab, line (11)
A12: =A10-1 -> -3 | B12: Restitution Amount Excluding Interest | C12: =ABS(C7-C10) -> 296889 | E12: Absolute value of difference
E13: between Total Payments
E14: and Final Cost
A16: =A12-1 -> -4 | B16: Interest Factor | C16: =ROUND('Interest Factor'!F14,3) -> 1.371 | E16: From Interest Factor tab, Column (5).
A18: =A16-1 -> -5 | B18: Interest | C18: =ROUND((C16-1)*C12,0) -> 110146 | E18: ="[("&-A16&") - 1] x ("&-A12&")" -> [(4) - 1] x (3)
A20: =A18-1 -> -6 | B20: Restitution Amount Including Interest | C20: =C12+C18 -> 407035 | E20: =IF(C7-C10>0, "To be paid by CIC.", "To be paid by claimant.") -> To be paid by CIC.
E21: ="("&-A12&") + ("&-A18&")" -> (3) + (5)

Sheet Interest Factor
A1: =Inputs!A1 -> California Insurance Company Rehabilitation Plan
A2: =Inputs!A2 -> Options to Settle Litigation Related to XYZ Company
A3: =Inputs!A3 -> EquityComp and SolutionOne Programs and RPA
A5: Option 3 - Interest Factor
B7: -1 | C7: =B7-1 -> -2 | D7: =C7-1 -> -3 | E7: =D7-1 -> -4 | F7: =E7-1 -> -5
B9: Weighted
B10: Average | C10: Restitution
B11: Payment | C11: =B11 -> Payment | D11: Years | E11: Interest | F11: Interest
B12: Date | C12: =B12 -> Date | D12: of Interest | E12: Rate | F12: Factor
B14: ='Weighted Average Payment Date'!M14 -> 2014-12-30T22:02:15.747 | C14: =Inputs!D55 -> 2026-11-01 | D14: =ROUND((C14-B14)/365.25,2) -> 11.84 | E14: 0.027 | F14: =ROUND((1+E14)^D14,3) -> 1.371 | I14: RESTIUTION DATE TO BE DETERMINED. SAMPLE in (2) IS FOR DRAFT TEMPLATE ONLY.
B17: Notes
B18: =B7 -> -1 | C18: From Weighted Average Payment Date tab, Column (11).
B19: =C7 -> -2 | C19: From Inputs Tab.
B20: =D7 -> -3 | C20: Time (measured in years) from Weighted Average
C21: Payment Date to Restitution Payment Date
B22: =E7 -> -4 | C22: Schedule 2.6, Section VI Subsection 5b
B23: =F7 -> -5 | C23: ="[1 + ("&-E7&")] ^ ("&-D7&")" -> [1 + (4)] ^ (3)

Sheet Weighted Average Payment Date
A1: =Inputs!A1 -> California Insurance Company Rehabilitation Plan
A2: =Inputs!A2 -> Options to Settle Litigation Related to XYZ Company
A3: =Inputs!A3 -> EquityComp and SolutionOne Programs and RPA
A5: Option 3 - Weighted Average Time to Payment
A7: XYZ Company (Account xxxxxx) As of February 9, 2019
A9: -1 | B9: =A9-1 -> -2 | C9: =B9-1 -> -3 | D9: -4 | E9: -5 | F9: -6 | G9: -7 | H9: -8 | J9: =H9-1 -> -9 | K9: =J9-1 -> -10 | M9: =K9-1 -> -11
M10: Weighted
M11: Average
M12: Payment
A13: Statement | B13: For the Period | D13: Amount Billed | G13: Amount | H13: Amount | J13: Midpoint of | K13: Weighted | M13: Date
A14: Date | B14: Beginning | C14: Ending | D14: Program Charges | E14: Other Charges | F14: Total | G14: Paid | H14: Due | J14: Period | K14: Midpoint | M14: =SUM(K15:K82)/SUM(G15:G82) -> 2014-12-30T22:02:15.747
A15: 2013-07-09 | B15: 2013-06-01 | C15: 2013-06-30 | D15: 101673 | E15: 10420.58 | F15: 112093.58 | G15: 112093.58 | H15: 0 | J15: =AVERAGE(B15:C15) -> 2013-06-15T12:00:00 | K15: =J15*G15 -> 4645214002
A16: 2013-08-10 | B16: 2013-07-01 | C16: 2013-07-31 | D16: 20268 | E16: 1702.26 | F16: 21970.26 | G16: 21970.26 | H16: 0 | J16: =AVERAGE(B16:C16) -> 2013-07-16 | K16: =J16*G16 -> 911128652.5
A17: 2013-09-11 | B17: 2013-08-01 | C17: 2013-08-31 | D17: 36941 | E17: 2924.43 | F17: 39865.43 | G17: 39865.43 | H17: 0 | J17: 2013-08-16 | K17: 1654495076
A18: 2013-10-08 | B18: 2013-09-01 | C18: 2013-09-30 | D18: 29383 | E18: 2378.58 | F18: 31761.58 | G18: 31761.58 | H18: 0 | J18: 2013-09-15T12:00:00 | K18: 1319137821
A19: 2013-11-10 | B19: 2013-10-01 | C19: 2013-10-31 | D19: 36379 | E19: 2925.05 | F19: 39304.05 | G19: 39304.05 | H19: 0 | J19: 2013-10-16 | K19: 1633594230
A20: 2013-12-10 | B20: 2013-11-01 | C20: 2013-11-30 | D20: 32479 | E20: 2336.81 | F20: 34815.81 | G20: 34815.81 | H20: 0 | J20: 2013-11-15T12:00:00 | K20: 1448111393
A21: 2014-01-08 | B21: 2013-12-01 | C21: 2013-12-31 | D21: 56054 | E21: 3245.9 | F21: 59299.9 | G21: 59299.9 | H21: 0 | J21: 2013-12-16 | K21: 2468299038
A22: 2014-02-08 | B22: 2014-01-01 | C22: 2014-01-31 | D22: 48223 | E22: 2886.83 | F22: 51109.83 | G22: 51109.83 | H22: 0 | J22: 2014-01-16 | K22: 2128979969
A23: 2014-03-09 | B23: 2014-02-01 | C23: 2014-02-28 | D23: 45476 | E23: 3032.6 | F23: 48508.6 | G23: 48508.6 | H23: 0 | J23: 2014-02-14T12:00:00 | K23: 2022056737
A24: 2014-04-08 | B24: 2014-03-01 | C24: 2014-03-31 | D24: 62462 | E24: 3230.69 | F24: 65692.69 | G24: 65692.69 | H24: 0 | J24: 2014-03-16 | K24: 2740304871
A25: 2014-05-09 | B25: 2014-04-01 | C25: 2014-04-30 | D25: 53993 | E25: 3172.01 | F25: 57165.01 | G25: 57165.01 | H25: 0 | J25: 2014-04-15T12:00:00 | K25: 2386324760
A26: 2014-06-10 | B26: 2014-05-01 | C26: 2014-05-31 | D26: 73521 | E26: 3335.19 | F26: 76856.19 | G26: 76856.19 | H26: 0 | J26: 2014-05-16 | K26: 3210667337
A27: 2014-07-08 | B27: 2014-06-01 | C27: 2014-06-30 | D27: 46813 | E27: 2648.79 | F27: 49461.79 | G27: 49461.79 | H27: 0 | J27: 2014-06-15T12:00:00 | K27: 2067774862
A28: 2014-08-08 | B28: 2014-07-01 | C28: 2014-07-31 | D28: 48954 | E28: 2602.93 | F28: 51556.93 | G28: 51556.93 | H28: 0 | J28: 2014-07-16 | K28: 2156935723
A29: 2014-09-10 | B29: 2014-08-01 | C29: 2014-08-31 | D29: 38920 | E29: 2194.32 | F29: 41114.32 | G29: 41114.32 | H29: 0 | J29: 2014-08-16 | K29: 1721333235
A30: 2014-10-08 | B30: 2014-09-01 | C30: 2014-09-30 | D30: 12328 | E30: 610.58 | F30: 12938.58 | G30: 12938.58 | H30: 0 | J30: 2014-09-15T12:00:00 | K30: 542094155.5
A31: 2014-11-08 | B31: 2014-10-01 | C31: 2014-10-31 | D31: 4444 | E31: -931.23 | F31: 3512.77 | G31: 3512.77 | H31: 0 | J31: 2014-10-16 | K31: 147283420.6
A32: 2014-12-09 | B32: 2014-11-01 | C32: 2014-11-30 | D32: 22941 | E32: 2229.57 | F32: 25170.57 | G32: 25170.57 | H32: 0 | J32: 2014-11-15T12:00:00 | K32: 1056119361
A33: 2015-01-08 | B33: 2014-12-01 | C33: 2014-12-31 | D33: 36142 | E33: 3429.41 | F33: 39571.41 | G33: 39571.41 | H33: 0 | J33: 2014-12-16 | K33: 1661563934
A34: 2015-02-10 | B34: 2015-01-01 | C34: 2015-01-31 | D34: 31072 | E34: 1898.04 | F34: 32970.04 | G34: 32970.04 | H34: 0 | J34: 2015-01-16 | K34: 1385401081
A35: 2015-03-10 | B35: 2015-02-01 | C35: 2015-02-28 | D35: 36460 | E35: 2197.48 | F35: 38657.48 | G35: 38657.48 | H35: 0 | J35: 2015-02-14T12:00:00 | K35: 1625527705
A36: 2015-04-08 | B36: 2015-03-01 | C36: 2015-03-31 | D36: 28268 | E36: 2139.62 | F36: 30407.62 | G36: 30407.62 | H36: 0 | J36: 2015-03-16 | K36: 1279522242
A37: 2015-05-08 | B37: 2015-04-01 | C37: 2015-04-30 | D37: 41642 | E37: 2670.69 | F37: 44312.69 | G37: 44312.69 | H37: 0 | J37: 2015-04-15T12:00:00 | K37: 1865985220
A38: 2015-06-09 | B38: 2015-05-01 | C38: 2015-05-31 | D38: 31049 | E38: 2199.88 | F38: 33248.88 | G38: 33248.88 | H38: 0 | J38: 2015-05-16 | K38: 1401107803
A39: 2015-07-08 | B39: 2015-06-01 | C39: 2015-06-30 | D39: 47466 | E39: 1619.51 | F39: 49085.51 | G39: 49085.51 | H39: 0 | J39: 2015-06-15T12:00:00 | K39: 2069960499
A40: 2015-08-08 | B40: 2015-07-01 | C40: 2015-07-31 | D40: 40787 | E40: 1997.98 | F40: 42784.98 | G40: 42784.98 | H40: 0 | J40: 2015-07-16 | K40: 1805568941
A41: 2015-09-09 | B41: 2015-08-01 | C41: 2015-08-31 | D41: 56226 | E41: 2497.84 | F41: 58723.84 | G41: 58723.84 | H41: 0 | J41: 2015-08-16 | K41: 2480025211
A42: 2015-10-07 | B42: 2015-09-01 | C42: 2015-09-30 | D42: 34245 | E42: 2081.92 | F42: 36326.92 | G42: 36326.92 | H42: 0 | J42: 2015-09-15T12:00:00 | K42: 1535266456
A43: 2015-11-09 | B43: 2015-10-01 | C43: 2015-10-31 | D43: 51409 | E43: 2153.63 | F43: 53562.63 | G43: 53562.63 | H43: 0 | J43: 2015-10-16 | K43: 2265324311
A44: 2015-12-08 | B44: 2015-11-01 | C44: 2015-11-30 | D44: 30394 | E44: 1602.01 | F44: 31996.01 | G44: 31996.01 | H44: 0 | J44: 2015-11-15T12:00:00 | K44: 1354183129
A45: 2016-01-07 | B45: 2015-12-01 | C45: 2015-12-31 | D45: 41847 | E45: 1871.73 | F45: 43718.73 | G45: 43718.73 | H45: 0 | J45: 2015-12-16 | K45: 1851663090
A46: 2016-02-09 | B46: 2016-01-01 | C46: 2016-01-31 | D46: 63047 | E46: 1422.52 | F46: 64469.52 | G46: 64469.52 | H46: 0 | J46: 2016-01-16 | K46: 2732540605
A47: 2016-03-08 | B47: 2016-02-01 | C47: 2016-02-29 | D47: 31123 | E47: 1776.65 | F47: 32899.65 | G47: 32899.65 | H47: 0 | J47: 2016-02-15 | K47: 1395438655
A48: 2016-04-07 | B48: 2016-03-01 | C48: 2016-03-31 | D48: 81837 | E48: 2245.42 | F48: 84082.42 | G48: 84082.42 | H48: 0 | J48: 2016-03-16 | K48: 3568878317
A49: 2016-05-10 | B49: 2016-04-01 | C49: 2016-04-30 | D49: 22073 | E49: 1758.34 | F49: 23831.34 | G49: 23831.34 | H49: 0 | J49: 2016-04-15T12:00:00 | K49: 1012248082
A50: 2016-06-09 | B50: 2016-05-01 | C50: 2016-05-31 | D50: 40746 | E50: 1757.39 | F50: 42503.39 | G50: 42503.39 | H50: 0 | J50: 2016-05-16 | K50: 1806649095
A51: 2016-07-08 | B51: 2016-06-01 | C51: 2016-06-30 | D51: 7093 | E51: 0 | F51: 7093 | G51: 7093 | H51: 0 | J51: 2016-06-15T12:00:00 | K51: 301711394.5
A52: 2016-08-09 | B52: 2016-07-01 | C52: 2016-07-31 | D52: 772 | E52: 0 | F52: 772 | G52: 772 | H52: 0 | J52: 2016-07-16 | K52: 32861724
A53: 2016-09-11 | B53: 2016-08-01 | C53: 2016-08-31 | D53: 117948 | E53: 63.91 | F53: 118011.91 | G53: 118011.91 | H53: 0 | J53: 2016-08-16 | K53: 5027071342
A54: 2016-10-08 | B54: 2016-09-01 | C54: 2016-09-30 | D54: 62605 | E54: 0 | F54: 62605 | G54: 0 | H54: 62605 | J54: 2016-09-15T12:00:00 | K54: 0
A55: 2016-11-08 | B55: 2016-10-01 | C55: 2016-10-31 | D55: 0 | E55: 0 | F55: 0 | G55: 0 | H55: 0 | J55: 2016-10-16 | K55: 0
A56: 2016-12-08 | B56: 2016-11-01 | C56: 2016-11-30 | D56: 32212 | E56: 0 | F56: 32212 | G56: 0 | H56: 32212 | J56: 2016-11-15T12:00:00 | K56: 0
A57: 2017-01-10 | B57: 2016-12-01 | C57: 2016-12-31 | D57: 0 | E57: 0 | F57: 0 | G57: 0 | H57: 0 | J57: 2016-12-16 | K57: 0
A58: 2017-02-08 | B58: 2017-01-01 | C58: 2017-01-31 | D58: 0 | E58: 0 | F58: 0 | G58: 0 | H58: 0 | J58: 2017-01-16 | K58: 0
A59: 2017-03-08 | B59: 2017-02-01 | C59: 2017-02-28 | D59: 0 | E59: 0 | F59: 0 | G59: 0 | H59: 0 | J59: 2017-02-14T12:00:00 | K59: 0
A60: 2017-04-08 | B60: 2017-03-01 | C60: 2017-03-31 | D60: 0 | E60: 0 | F60: 0 | G60: 0 | H60: 0 | J60: 2017-03-16 | K60: 0
A61: 2017-05-09 | B61: 2017-04-01 | C61: 2017-04-30 | D61: 0 | E61: 0 | F61: 0 | G61: 0 | H61: 0 | J61: 2017-04-15T12:00:00 | K61: 0
A62: 2017-06-08 | B62: 2017-05-01 | C62: 2017-05-31 | D62: 0 | E62: 0 | F62: 0 | G62: 0 | H62: 0 | J62: 2017-05-16 | K62: 0
A63: 2017-07-08 | B63: 2017-06-01 | C63: 2017-06-30 | D63: 0 | E63: 0 | F63: 0 | G63: 0 | H63: 0 | J63: 2017-06-15T12:00:00 | K63: 0
A64: 2017-08-08 | B64: 2017-07-01 | C64: 2017-07-31 | D64: 0 | E64: 0 | F64: 0 | G64: 0 | H64: 0 | J64: 2017-07-16 | K64: 0
A65: 2017-09-08 | B65: 2017-08-01 | C65: 2017-08-31 | D65: 0 | E65: 0 | F65: 0 | G65: 0 | H65: 0 | J65: 2017-08-16 | K65: 0
A66: 2017-10-10 | B66: 2017-09-01 | C66: 2017-09-30 | D66: 0 | E66: 0 | F66: 0 | G66: 0 | H66: 0 | J66: 2017-09-15T12:00:00 | K66: 0
A67: 2017-11-08 | B67: 2017-10-01 | C67: 2017-10-31 | D67: 0 | E67: 0 | F67: 0 | G67: 0 | H67: 0 | J67: 2017-10-16 | K67: 0
A68: 2017-12-08 | B68: 2017-11-01 | C68: 2017-11-30 | D68: 0 | E68: 0 | F68: 0 | G68: 0 | H68: 0 | J68: 2017-11-15T12:00:00 | K68: 0
A69: 2018-01-08 | B69: 2017-12-01 | C69: 2017-12-31 | D69: 0 | E69: 0 | F69: 0 | G69: 0 | H69: 0 | J69: 2017-12-16 | K69: 0
A70: 2018-02-08 | B70: 2018-01-01 | C70: 2018-01-31 | D70: 0 | E70: 0 | F70: 0 | G70: 0 | H70: 0 | J70: 2018-01-16 | K70: 0
A71: 2018-03-08 | B71: 2018-02-01 | C71: 2018-02-28 | D71: 0 | E71: 0 | F71: 0 | G71: 0 | H71: 0 | J71: 2018-02-14T12:00:00 | K71: 0
A72: 2018-04-10 | B72: 2018-03-01 | C72: 2018-03-31 | D72: 0 | E72: 0 | F72: 0 | G72: 0 | H72: 0 | J72: 2018-03-16 | K72: 0
A73: 2018-05-08 | B73: 2018-04-01 | C73: 2018-04-30 | D73: 0 | E73: 0 | F73: 0 | G73: 0 | H73: 0 | J73: 2018-04-15T12:00:00 | K73: 0
A74: 2018-06-08 | B74: 2018-05-01 | C74: 2018-05-31 | D74: 0 | E74: 0 | F74: 0 | G74: 0 | H74: 0 | J74: 2018-05-16 | K74: 0
A75: 2018-07-09 | B75: 2018-06-01 | C75: 2018-06-30 | D75: 0 | E75: 0 | F75: 0 | G75: 0 | H75: 0 | J75: 2018-06-15T12:00:00 | K75: 0
A76: 2018-08-08 | B76: 2018-07-01 | C76: 2018-07-31 | D76: 0 | E76: 0 | F76: 0 | G76: 0 | H76: 0 | J76: 2018-07-16 | K76: 0
A77: 2018-09-08 | B77: 2018-08-01 | C77: 2018-08-31 | D77: 0 | E77: 0 | F77: 0 | G77: 0 | H77: 0 | J77: 2018-08-16 | K77: 0
A78: 2018-10-08 | B78: 2018-09-01 | C78: 2018-09-30 | D78: 0 | E78: 0 | F78: 0 | G78: 0 | H78: 0 | J78: 2018-09-15T12:00:00 | K78: 0
A79: 2018-11-08 | B79: 2018-10-01 | C79: 2018-10-31 | D79: 0 | E79: 0 | F79: 0 | G79: 0 | H79: 0 | J79: 2018-10-16 | K79: 0
A80: 2018-12-07 | B80: 2018-11-01 | C80: 2018-11-30 | D80: 0 | E80: 0 | F80: 0 | G80: 0 | H80: 0 | J80: =AVERAGE(B80:C80) -> 2018-11-15T12:00:00 | K80: =J80*G80 -> 0
A81: 2019-01-07 | B81: 2018-12-01 | C81: 2018-12-31 | D81: 0 | E81: 0 | F81: 0 | G81: 0 | H81: 0 | J81: 2018-12-16 | K81: 0
A82: 2019-02-09 | B82: 2019-01-01 | C82: 2019-01-31 | D82: 0 | E82: 0 | F82: 0 | G82: 0 | H82: 0 | J82: 2019-01-16 | K82: 0
A83: TOTAL | D83: =SUM(D15:D82) -> 1737715 | E83: =SUM(E15:E82) -> 88329.86 | F83: 1826044.86 | G83: 1731227.86 | H83: 94817
A84: Summary of Other Charges:
A85: Non-Refundable Setup Fee | E85: 7673
A86: Taxes and Assessments | E86: 80656.86
A87: Total Other Charges | E87: 88329.86
A89: Notes
A90: ="("&-A9&") to ("&-H9&")" -> (1) to (8) | B90: Provided by CIC.
A91: =J9 -> -9 | B91: ="Midpoint of ("&-B9&") and ("&-C9&")." -> Midpoint of (2) and (3).
A92: =K9 -> -10 | B92: ="Weighted Midpoint, Value of ("&-J9&") x ("&-G9&")." -> Weighted Midpoint, Value of (9) x (7).
A93: =M9 -> -11 | B93: ="Sum of ("&-K9&") / sum of ("&-G9&")" -> Sum of (10) / sum of (7)

Sheet Final Cost
A1: =Inputs!A1 -> California Insurance Company Rehabilitation Plan
A2: =Inputs!A2 -> Options to Settle Litigation Related to XYZ Company
A3: =Inputs!A3 -> EquityComp and SolutionOne Programs and RPA
A5: Option 3 - Final Cost
B7: -1 | C7: Estimated LPCA | E7: ='Estimated LPCA'!E89 -> 1987207.68
B9: =B7-1 -> -2 | C9: Actual LPCA | E9: =Inputs!D27 -> 1931656
B11: =B9-1 -> -3 | C11: Actual Losses | E11: ='Actual Losses'!L29 -> 131495.7274
B13: =B11-1 -> -4 | C13: Ultimate Claim Cost | E13: =E11*E7/E9 -> 135277.3576
B15: =B13-1 -> -5 | C15: Adjusted Final Cost | E15: =IFERROR(ROUND(INDEX('Final Cost Scenarios'!D9:D37,MATCH($E$13,'Final Cost Scenarios'!C9:C37,1))+($E$13-INDEX('Final Cost Scenarios'!C9:C37,MATCH($E$13,'Final Cost Scenarios'!C9:C37,1)))*(INDEX('Final Cost Scenarios'!D9:D37,MATCH($E$13,'Final Cost Scenarios'!C9:C37,1)+1)-INDEX('Final Cost Scenarios'!D9:D37,MATCH($E$13,'Final Cost Scenarios'!C9:C37,1)))/(INDEX('Final Cost Scenarios'!C9:C37,MATCH($E$13,'Final Cost Scenarios'!C9:C37,1)+1)-INDEX('Final Cost Scenarios'!C9:C37,MATCH($E$13,'Final Cost Scenarios'!C9:C37,1))),0),'Final Cost Scenarios'!D37) -> 1389374
B17: =B15-1 -> -6 | C17: Final Cost, before surcharges | E17: =E15*E9/E7 -> 1350534.546
B19: =B17-1 -> -7 | C19: Surcharges- Policy Year 1 | E19: ='Surcharges - Policy Year 1'!F30 -> 32828
B20: =B19-1 -> -8 | C20: Surcharges- Policy Year 2 | E20: ='Surcharges - Policy Year 2'!F30 -> 30993
B21: =B20-1 -> -9 | C21: Surcharges- Policy Year 3 | E21: ='Surcharges - Policy Year 3'!F30 -> 19983
B23: =B21-1 -> -10 | C23: Three -Year Surcharges | E23: =SUM(E19:E21) -> 83804
B25: =B23-1 -> -11 | C25: Final Cost, including surcharges | E25: =E23+E17 -> 1434338.546
A27: Notes
B28: =B7 -> -1 | C28: From Expected LPCA tab.
B29: =B9 -> -2 | C29: From Final Plan Analysis
B30: =B11 -> -3 | C30: From Actual Losses Tab
B31: =B13 -> -4 | C31: ="("&-B7&") / ("&-B9&") x ("&-B11&")" -> (1) / (2) x (3)
B32: =B15 -> -5 | C32: Interpolation of final cost column in Final
C33: Cost Scenarios tab based on value
C34: ="in ("&-B13&")." -> in (4).
B35: =B32-1 -> -6 | C35: ="("&-B15&") x ("&-B9&") / ("&-B7&")" -> (5) x (2) / (1)
B36: =B35-1 -> -7 | C36: From Surcharges - Policy Year 1
B37: =B36-1 -> -8 | C37: From Surcharges - Policy Year 2
B38: =B37-1 -> -9 | C38: From Surcharges - Policy Year 3
B39: =B38-1 -> -10 | C39: ="("&-B19&") + ("&-B20&") + ("&-B21&")" -> (7) + (8) + (9)
B40: =B39-1 -> -11 | C40: ="("&-B17&") + ("&-B23&")" -> (6) + (10)

Sheet Final Cost Scenarios
A1: =Inputs!A1 -> California Insurance Company Rehabilitation Plan
A2: =Inputs!A2 -> Options to Settle Litigation Related to XYZ Company
A3: =Inputs!A3 -> EquityComp and SolutionOne Programs and RPA
A5: Option 3 - Final Cost Scenarios
C7: Ultimate
C8: Claims Cost | D8: Final Cost | F8: Source:
C9: 0 | D9: 714987 | F9: Workers' Compensation
C10: 75000 | D10: 933762 | F10: Program Summary
C11: 150000 | D11: 1500657 | F11: & Scenarios
C12: 225000 | D12: 1553415
C13: 300000 | D13: 1606377
C14: 375000 | D14: 1645896
C15: 450000 | D15: 1685619
C16: 525000 | D16: 1725339
C17: 600000 | D17: 1751820
C18: 675000 | D18: 1791339
C19: 750000 | D19: 1817820
C20: 825000 | D20: 1844301
C21: 900000 | D21: 1870782
C22: 975000 | D22: 1910298
C23: 1050000 | D23: 1936779
C24: 1125000 | D24: 1976502
C25: 1224000 | D25: 2037000
C26: 1275000 | D26: 2055741
C27: 1350000 | D27: 2108703
C28: 1425000 | D28: 2174700
C29: 1500000 | D29: 2293662
C30: 1575000 | D30: 2428716
C31: 1650000 | D31: 2558064
C32: 1725000 | D32: 2597787
C33: 1800000 | D33: 2611026
C34: 1875000 | D34: 2611026
C35: 1950000 | D35: 2624268
C36: 2100000 | D36: 2624268
C37: 13215000 | D37: 2647896

Sheet Estimated LPCA
A1: =Inputs!A1 -> California Insurance Company Rehabilitation Plan
A2: =Inputs!A2 -> Options to Settle Litigation Related to XYZ Company
A3: =Inputs!A3 -> EquityComp and SolutionOne Programs and RPA
A5: Option 3 - Estimated LPCA
C8: -1 | D8: =C8-1 -> -2 | E8: =D8-1 -> -3
E9: Estimated
C10: Loss Pick | D10: Estimated | E10: Loss Pick
B11: Class | C11: Containment | D11: Annual | E11: Containment
B12: Code | C12: Rate | D12: Payroll | E12: Amount
B14: Policy Year 1
B15: =IF(ROWS($B$15:B15)<=Inputs!$B$59,INDEX(Inputs!$A$64:$A$139,ROWS($B$15:B15)),"") -> CA3831 | C15: =IF(B15="","",INDEX(Inputs!$E$64:$E$139,ROWS($B$15:B15))) -> 8.11 | D15: =IF(B15="","",INDEX(Inputs!$B$64:$B$139,ROWS($B$15:B15))) -> 8000000 | E15: =IF(OR(C15="",D15=""),"",C15*D15/100) -> 648800
B16: =IF(ROWS($B$15:B16)<=Inputs!$B$59,INDEX(Inputs!$A$64:$A$139,ROWS($B$15:B16)),"") -> CA8810 | C16: =IF(B16="","",INDEX(Inputs!$E$64:$E$139,ROWS($B$15:B16))) -> 1.07 | D16: =IF(B16="","",INDEX(Inputs!$B$64:$B$139,ROWS($B$15:B16))) -> 2800000 | E16: =IF(OR(C65="",D16=""),"",C16*D16/100) -> 29960
B17: =IF(ROWS($B$15:B17)<=Inputs!$B$59,INDEX(Inputs!$A$64:$A$139,ROWS($B$15:B17)),"") ->  | C17: =IF(B17="","",INDEX(Inputs!$E$64:$E$139,ROWS($B$15:B17))) ->  | D17: =IF(B17="","",INDEX(Inputs!$B$64:$B$139,ROWS($B$15:B17))) ->  | E17: =IF(OR(C66="",D17=""),"",C17*D17/100) -> 
B18: =IF(ROWS($B$15:B18)<=Inputs!$B$59,INDEX(Inputs!$A$64:$A$139,ROWS($B$15:B18)),"") ->  | C18: =IF(B18="","",INDEX(Inputs!$E$64:$E$139,ROWS($B$15:B18))) ->  | D18: =IF(B18="","",INDEX(Inputs!$B$64:$B$139,ROWS($B$15:B18))) -> 
B19: =IF(ROWS($B$15:B19)<=Inputs!$B$59,INDEX(Inputs!$A$64:$A$139,ROWS($B$15:B19)),"") ->  | C19: =IF(B19="","",INDEX(Inputs!$E$64:$E$139,ROWS($B$15:B19))) ->  | D19: =IF(B19="","",INDEX(Inputs!$B$64:$B$139,ROWS($B$15:B19))) -> 
B20: =IF(ROWS($B$15:B20)<=Inputs!$B$59,INDEX(Inputs!$A$64:$A$139,ROWS($B$15:B20)),"") ->  | C20: =IF(B20="","",INDEX(Inputs!$E$64:$E$139,ROWS($B$15:B20))) ->  | D20: =IF(B20="","",INDEX(Inputs!$B$64:$B$139,ROWS($B$15:B20))) -> 
B21: =IF(ROWS($B$15:B21)<=Inputs!$B$59,INDEX(Inputs!$A$64:$A$139,ROWS($B$15:B21)),"") ->  | C21: =IF(B21="","",INDEX(Inputs!$E$64:$E$139,ROWS($B$15:B21))) ->  | D21: =IF(B21="","",INDEX(Inputs!$B$64:$B$139,ROWS($B$15:B21))) -> 
B22: =IF(ROWS($B$15:B22)<=Inputs!$B$59,INDEX(Inputs!$A$64:$A$139,ROWS($B$15:B22)),"") ->  | C22: =IF(B22="","",INDEX(Inputs!$E$64:$E$139,ROWS($B$15:B22))) ->  | D22: =IF(B22="","",INDEX(Inputs!$B$64:$B$139,ROWS($B$15:B22))) -> 
B23: =IF(ROWS($B$15:B23)<=Inputs!$B$59,INDEX(Inputs!$A$64:$A$139,ROWS($B$15:B23)),"") ->  | C23: =IF(B23="","",INDEX(Inputs!$E$64:$E$139,ROWS($B$15:B23))) ->  | D23: =IF(B23="","",INDEX(Inputs!$B$64:$B$139,ROWS($B$15:B23))) -> 
B24: =IF(ROWS($B$15:B24)<=Inputs!$B$59,INDEX(Inputs!$A$64:$A$139,ROWS($B$15:B24)),"") ->  | C24: =IF(B24="","",INDEX(Inputs!$E$64:$E$139,ROWS($B$15:B24))) ->  | D24: =IF(B24="","",INDEX(Inputs!$B$64:$B$139,ROWS($B$15:B24))) -> 
B25: =IF(ROWS($B$15:B25)<=Inputs!$B$59,INDEX(Inputs!$A$64:$A$139,ROWS($B$15:B25)),"") ->  | C25: =IF(B25="","",INDEX(Inputs!$E$64:$E$139,ROWS($B$15:B25))) ->  | D25: =IF(B25="","",INDEX(Inputs!$B$64:$B$139,ROWS($B$15:B25))) -> 
B26: =IF(ROWS($B$15:B26)<=Inputs!$B$59,INDEX(Inputs!$A$64:$A$139,ROWS($B$15:B26)),"") ->  | C26: =IF(B26="","",INDEX(Inputs!$E$64:$E$139,ROWS($B$15:B26))) ->  | D26: =IF(B26="","",INDEX(Inputs!$B$64:$B$139,ROWS($B$15:B26))) -> 
B27: =IF(ROWS($B$15:B27)<=Inputs!$B$59,INDEX(Inputs!$A$64:$A$139,ROWS($B$15:B27)),"") ->  | C27: =IF(B27="","",INDEX(Inputs!$E$64:$E$139,ROWS($B$15:B27))) ->  | D27: =IF(B27="","",INDEX(Inputs!$B$64:$B$139,ROWS($B$15:B27))) -> 
B28: =IF(ROWS($B$15:B28)<=Inputs!$B$59,INDEX(Inputs!$A$64:$A$139,ROWS($B$15:B28)),"") ->  | C28: =IF(B28="","",INDEX(Inputs!$E$64:$E$139,ROWS($B$15:B28))) ->  | D28: =IF(B28="","",INDEX(Inputs!$B$64:$B$139,ROWS($B$15:B28))) -> 
B29: =IF(ROWS($B$15:B29)<=Inputs!$B$59,INDEX(Inputs!$A$64:$A$139,ROWS($B$15:B29)),"") ->  | C29: =IF(B29="","",INDEX(Inputs!$E$64:$E$139,ROWS($B$15:B29))) ->  | D29: =IF(B29="","",INDEX(Inputs!$B$64:$B$139,ROWS($B$15:B29))) -> 
B30: =IF(ROWS($B$15:B30)<=Inputs!$B$59,INDEX(Inputs!$A$64:$A$139,ROWS($B$15:B30)),"") ->  | C30: =IF(B30="","",INDEX(Inputs!$E$64:$E$139,ROWS($B$15:B30))) ->  | D30: =IF(B30="","",INDEX(Inputs!$B$64:$B$139,ROWS($B$15:B30))) -> 
B31: =IF(ROWS($B$15:B31)<=Inputs!$B$59,INDEX(Inputs!$A$64:$A$139,ROWS($B$15:B31)),"") ->  | C31: =IF(B31="","",INDEX(Inputs!$E$64:$E$139,ROWS($B$15:B31))) ->  | D31: =IF(B31="","",INDEX(Inputs!$B$64:$B$139,ROWS($B$15:B31))) -> 
B32: =IF(ROWS($B$15:B32)<=Inputs!$B$59,INDEX(Inputs!$A$64:$A$139,ROWS($B$15:B32)),"") ->  | C32: =IF(B32="","",INDEX(Inputs!$E$64:$E$139,ROWS($B$15:B32))) ->  | D32: =IF(B32="","",INDEX(Inputs!$B$64:$B$139,ROWS($B$15:B32))) -> 
B33: =IF(ROWS($B$15:B33)<=Inputs!$B$59,INDEX(Inputs!$A$64:$A$139,ROWS($B$15:B33)),"") ->  | C33: =IF(B33="","",INDEX(Inputs!$E$64:$E$139,ROWS($B$15:B33))) ->  | D33: =IF(B33="","",INDEX(Inputs!$B$64:$B$139,ROWS($B$15:B33))) -> 
B34: =IF(ROWS($B$15:B34)<=Inputs!$B$59,INDEX(Inputs!$A$64:$A$139,ROWS($B$15:B34)),"") ->  | C34: =IF(B34="","",INDEX(Inputs!$E$64:$E$139,ROWS($B$15:B34))) ->  | D34: =IF(B34="","",INDEX(Inputs!$B$64:$B$139,ROWS($B$15:B34))) -> 
B35: =IF(ROWS($B$15:B35)<=Inputs!$B$59,INDEX(Inputs!$A$64:$A$139,ROWS($B$15:B35)),"") ->  | C35: =IF(B35="","",INDEX(Inputs!$E$64:$E$139,ROWS($B$15:B35))) ->  | D35: =IF(B35="","",INDEX(Inputs!$B$64:$B$139,ROWS($B$15:B35))) -> 
D37: Total: | E37: =SUM(E15:INDEX(E:E,14+Inputs!$B$59)) -> 678760
B39: Policy Year 2
B40: =IF(ROWS($B$40:B40)<=Inputs!$C$59,INDEX(Inputs!$A$64:$A$139,ROWS($B$40:B40)),"") -> CA3831 | C40: =IF(B40="","",INDEX(Inputs!$E$64:$E$139,ROWS($B$40:B40))) -> 8.11 | D40: =IF(B40="","",INDEX(Inputs!$C$64:$C$139,ROWS($B$40:B40))) -> 8108736 | E40: =IF(OR(C40="",D40=""),"",C40*D40/100) -> 657618.4896
B41: =IF(ROWS($B$40:B41)<=Inputs!$C$59,INDEX(Inputs!$A$64:$A$139,ROWS($B$40:B41)),"") -> CA8810 | C41: =IF(B41="","",INDEX(Inputs!$E$64:$E$139,ROWS($B$40:B41))) -> 1.07 | D41: =IF(B41="","",INDEX(Inputs!$C$64:$C$139,ROWS($B$40:B41))) -> 3530635 | E41: =IF(OR(C41="",D41=""),"",C41*D41/100) -> 37777.7945
B42: =IF(ROWS($B$40:B42)<=Inputs!$C$59,INDEX(Inputs!$A$64:$A$139,ROWS($B$40:B42)),"") ->  | C42: =IF(B42="","",INDEX(Inputs!$E$64:$E$139,ROWS($B$40:B42))) ->  | D42: =IF(B42="","",INDEX(Inputs!$C$64:$C$139,ROWS($B$40:B42))) ->  | E42: =IF(OR(C42="",D42=""),"",C42*D42/100) -> 
B43: =IF(ROWS($B$40:B43)<=Inputs!$C$59,INDEX(Inputs!$A$64:$A$139,ROWS($B$40:B43)),"") ->  | C43: =IF(B43="","",INDEX(Inputs!$E$64:$E$139,ROWS($B$40:B43))) ->  | D43: =IF(B43="","",INDEX(Inputs!$C$64:$C$139,ROWS($B$40:B43))) -> 
B44: =IF(ROWS($B$40:B44)<=Inputs!$C$59,INDEX(Inputs!$A$64:$A$139,ROWS($B$40:B44)),"") ->  | C44: =IF(B44="","",INDEX(Inputs!$E$64:$E$139,ROWS($B$40:B44))) ->  | D44: =IF(B44="","",INDEX(Inputs!$C$64:$C$139,ROWS($B$40:B44))) -> 
B45: =IF(ROWS($B$40:B45)<=Inputs!$C$59,INDEX(Inputs!$A$64:$A$139,ROWS($B$40:B45)),"") ->  | C45: =IF(B45="","",INDEX(Inputs!$E$64:$E$139,ROWS($B$40:B45))) ->  | D45: =IF(B45="","",INDEX(Inputs!$C$64:$C$139,ROWS($B$40:B45))) -> 
B46: =IF(ROWS($B$40:B46)<=Inputs!$C$59,INDEX(Inputs!$A$64:$A$139,ROWS($B$40:B46)),"") ->  | C46: =IF(B46="","",INDEX(Inputs!$E$64:$E$139,ROWS($B$40:B46))) ->  | D46: =IF(B46="","",INDEX(Inputs!$C$64:$C$139,ROWS($B$40:B46))) -> 
B47: =IF(ROWS($B$40:B47)<=Inputs!$C$59,INDEX(Inputs!$A$64:$A$139,ROWS($B$40:B47)),"") ->  | C47: =IF(B47="","",INDEX(Inputs!$E$64:$E$139,ROWS($B$40:B47))) ->  | D47: =IF(B47="","",INDEX(Inputs!$C$64:$C$139,ROWS($B$40:B47))) -> 
B48: =IF(ROWS($B$40:B48)<=Inputs!$C$59,INDEX(Inputs!$A$64:$A$139,ROWS($B$40:B48)),"") ->  | C48: =IF(B48="","",INDEX(Inputs!$E$64:$E$139,ROWS($B$40:B48))) ->  | D48: =IF(B48="","",INDEX(Inputs!$C$64:$C$139,ROWS($B$40:B48))) -> 
B49: =IF(ROWS($B$40:B49)<=Inputs!$C$59,INDEX(Inputs!$A$64:$A$139,ROWS($B$40:B49)),"") ->  | C49: =IF(B49="","",INDEX(Inputs!$E$64:$E$139,ROWS($B$40:B49))) ->  | D49: =IF(B49="","",INDEX(Inputs!$C$64:$C$139,ROWS($B$40:B49))) -> 
B50: =IF(ROWS($B$40:B50)<=Inputs!$C$59,INDEX(Inputs!$A$64:$A$139,ROWS($B$40:B50)),"") ->  | C50: =IF(B50="","",INDEX(Inputs!$E$64:$E$139,ROWS($B$40:B50))) ->  | D50: =IF(B50="","",INDEX(Inputs!$C$64:$C$139,ROWS($B$40:B50))) -> 
B51: =IF(ROWS($B$40:B51)<=Inputs!$C$59,INDEX(Inputs!$A$64:$A$139,ROWS($B$40:B51)),"") ->  | C51: =IF(B51="","",INDEX(Inputs!$E$64:$E$139,ROWS($B$40:B51))) ->  | D51: =IF(B51="","",INDEX(Inputs!$C$64:$C$139,ROWS($B$40:B51))) -> 
B52: =IF(ROWS($B$40:B52)<=Inputs!$C$59,INDEX(Inputs!$A$64:$A$139,ROWS($B$40:B52)),"") ->  | C52: =IF(B52="","",INDEX(Inputs!$E$64:$E$139,ROWS($B$40:B52))) ->  | D52: =IF(B52="","",INDEX(Inputs!$C$64:$C$139,ROWS($B$40:B52))) -> 
B53: =IF(ROWS($B$40:B53)<=Inputs!$C$59,INDEX(Inputs!$A$64:$A$139,ROWS($B$40:B53)),"") ->  | C53: =IF(B53="","",INDEX(Inputs!$E$64:$E$139,ROWS($B$40:B53))) ->  | D53: =IF(B53="","",INDEX(Inputs!$C$64:$C$139,ROWS($B$40:B53))) -> 
B54: =IF(ROWS($B$40:B54)<=Inputs!$C$59,INDEX(Inputs!$A$64:$A$139,ROWS($B$40:B54)),"") ->  | C54: =IF(B54="","",INDEX(Inputs!$E$64:$E$139,ROWS($B$40:B54))) ->  | D54: =IF(B54="","",INDEX(Inputs!$C$64:$C$139,ROWS($B$40:B54))) -> 
B55: =IF(ROWS($B$40:B55)<=Inputs!$C$59,INDEX(Inputs!$A$64:$A$139,ROWS($B$40:B55)),"") ->  | C55: =IF(B55="","",INDEX(Inputs!$E$64:$E$139,ROWS($B$40:B55))) ->  | D55: =IF(B55="","",INDEX(Inputs!$C$64:$C$139,ROWS($B$40:B55))) -> 
B56: =IF(ROWS($B$40:B56)<=Inputs!$C$59,INDEX(Inputs!$A$64:$A$139,ROWS($B$40:B56)),"") ->  | C56: =IF(B56="","",INDEX(Inputs!$E$64:$E$139,ROWS($B$40:B56))) ->  | D56: =IF(B56="","",INDEX(Inputs!$C$64:$C$139,ROWS($B$40:B56))) -> 
B57: =IF(ROWS($B$40:B57)<=Inputs!$C$59,INDEX(Inputs!$A$64:$A$139,ROWS($B$40:B57)),"") ->  | C57: =IF(B57="","",INDEX(Inputs!$E$64:$E$139,ROWS($B$40:B57))) ->  | D57: =IF(B57="","",INDEX(Inputs!$C$64:$C$139,ROWS($B$40:B57))) -> 
B58: =IF(ROWS($B$40:B58)<=Inputs!$C$59,INDEX(Inputs!$A$64:$A$139,ROWS($B$40:B58)),"") ->  | C58: =IF(B58="","",INDEX(Inputs!$E$64:$E$139,ROWS($B$40:B58))) ->  | D58: =IF(B58="","",INDEX(Inputs!$C$64:$C$139,ROWS($B$40:B58))) -> 
B59: =IF(ROWS($B$40:B59)<=Inputs!$C$59,INDEX(Inputs!$A$64:$A$139,ROWS($B$40:B59)),"") ->  | C59: =IF(B59="","",INDEX(Inputs!$E$64:$E$139,ROWS($B$40:B59))) ->  | D59: =IF(B59="","",INDEX(Inputs!$C$64:$C$139,ROWS($B$40:B59))) -> 
B60: =IF(ROWS($B$40:B60)<=Inputs!$C$59,INDEX(Inputs!$A$64:$A$139,ROWS($B$40:B60)),"") ->  | C60: =IF(B60="","",INDEX(Inputs!$E$64:$E$139,ROWS($B$40:B60))) ->  | D60: =IF(B60="","",INDEX(Inputs!$C$64:$C$139,ROWS($B$40:B60))) -> 
D62: Total: | E62: =SUM(E40:INDEX(E:E,39+Inputs!$C$59)) -> 695396.2841
B64: Policy Year 3
B65: =IF(ROWS($B$65:B65)<=Inputs!$D$59,INDEX(Inputs!$A$64:$A$139,ROWS($B$65:B65)),"") -> CA3831 | C65: =IF(B65="","",INDEX(Inputs!$E$64:$E$139,ROWS($B$65:B65))) -> 8.11 | D65: =IF(B65="","",INDEX(Inputs!$D$64:$D$139,ROWS($B$65:B65))) -> 7101861 | E65: =IF(OR(C65="",D65=""),"",C65*D65/100) -> 575960.9271
B66: =IF(ROWS($B$65:B66)<=Inputs!$D$59,INDEX(Inputs!$A$64:$A$139,ROWS($B$65:B66)),"") -> CA8810 | C66: =IF(B66="","",INDEX(Inputs!$E$64:$E$139,ROWS($B$65:B66))) -> 1.07 | D66: =IF(B66="","",INDEX(Inputs!$D$64:$D$139,ROWS($B$65:B66))) -> 3466399 | E66: =IF(OR(C66="",D66=""),"",C66*D66/100) -> 37090.4693
B67: =IF(ROWS($B$65:B67)<=Inputs!$D$59,INDEX(Inputs!$A$64:$A$139,ROWS($B$65:B67)),"") ->  | C67: =IF(B67="","",INDEX(Inputs!$E$64:$E$139,ROWS($B$65:B67))) ->  | D67: =IF(B67="","",INDEX(Inputs!$D$64:$D$139,ROWS($B$65:B67))) ->  | E67: =IF(OR(C67="",D67=""),"",C67*D67/100) -> 
B68: =IF(ROWS($B$65:B68)<=Inputs!$D$59,INDEX(Inputs!$A$64:$A$139,ROWS($B$65:B68)),"") ->  | C68: =IF(B68="","",INDEX(Inputs!$E$64:$E$139,ROWS($B$65:B68))) ->  | D68: =IF(B68="","",INDEX(Inputs!$D$64:$D$139,ROWS($B$65:B68))) -> 
B69: =IF(ROWS($B$65:B69)<=Inputs!$D$59,INDEX(Inputs!$A$64:$A$139,ROWS($B$65:B69)),"") ->  | C69: =IF(B69="","",INDEX(Inputs!$E$64:$E$139,ROWS($B$65:B69))) ->  | D69: =IF(B69="","",INDEX(Inputs!$D$64:$D$139,ROWS($B$65:B69))) -> 
B70: =IF(ROWS($B$65:B70)<=Inputs!$D$59,INDEX(Inputs!$A$64:$A$139,ROWS($B$65:B70)),"") ->  | C70: =IF(B70="","",INDEX(Inputs!$E$64:$E$139,ROWS($B$65:B70))) ->  | D70: =IF(B70="","",INDEX(Inputs!$D$64:$D$139,ROWS($B$65:B70))) -> 
B71: =IF(ROWS($B$65:B71)<=Inputs!$D$59,INDEX(Inputs!$A$64:$A$139,ROWS($B$65:B71)),"") ->  | C71: =IF(B71="","",INDEX(Inputs!$E$64:$E$139,ROWS($B$65:B71))) ->  | D71: =IF(B71="","",INDEX(Inputs!$D$64:$D$139,ROWS($B$65:B71))) -> 
B72: =IF(ROWS($B$65:B72)<=Inputs!$D$59,INDEX(Inputs!$A$64:$A$139,ROWS($B$65:B72)),"") ->  | C72: =IF(B72="","",INDEX(Inputs!$E$64:$E$139,ROWS($B$65:B72))) ->  | D72: =IF(B72="","",INDEX(Inputs!$D$64:$D$139,ROWS($B$65:B72))) -> 
B73: =IF(ROWS($B$65:B73)<=Inputs!$D$59,INDEX(Inputs!$A$64:$A$139,ROWS($B$65:B73)),"") ->  | C73: =IF(B73="","",INDEX(Inputs!$E$64:$E$139,ROWS($B$65:B73))) ->  | D73: =IF(B73="","",INDEX(Inputs!$D$64:$D$139,ROWS($B$65:B73))) -> 
B74: =IF(ROWS($B$65:B74)<=Inputs!$D$59,INDEX(Inputs!$A$64:$A$139,ROWS($B$65:B74)),"") ->  | C74: =IF(B74="","",INDEX(Inputs!$E$64:$E$139,ROWS($B$65:B74))) ->  | D74: =IF(B74="","",INDEX(Inputs!$D$64:$D$139,ROWS($B$65:B74))) -> 
B75: =IF(ROWS($B$65:B75)<=Inputs!$D$59,INDEX(Inputs!$A$64:$A$139,ROWS($B$65:B75)),"") ->  | C75: =IF(B75="","",INDEX(Inputs!$E$64:$E$139,ROWS($B$65:B75))) ->  | D75: =IF(B75="","",INDEX(Inputs!$D$64:$D$139,ROWS($B$65:B75))) -> 
B76: =IF(ROWS($B$65:B76)<=Inputs!$D$59,INDEX(Inputs!$A$64:$A$139,ROWS($B$65:B76)),"") ->  | C76: =IF(B76="","",INDEX(Inputs!$E$64:$E$139,ROWS($B$65:B76))) ->  | D76: =IF(B76="","",INDEX(Inputs!$D$64:$D$139,ROWS($B$65:B76))) -> 
B77: =IF(ROWS($B$65:B77)<=Inputs!$D$59,INDEX(Inputs!$A$64:$A$139,ROWS($B$65:B77)),"") ->  | C77: =IF(B77="","",INDEX(Inputs!$E$64:$E$139,ROWS($B$65:B77))) ->  | D77: =IF(B77="","",INDEX(Inputs!$D$64:$D$139,ROWS($B$65:B77))) -> 
B78: =IF(ROWS($B$65:B78)<=Inputs!$D$59,INDEX(Inputs!$A$64:$A$139,ROWS($B$65:B78)),"") ->  | C78: =IF(B78="","",INDEX(Inputs!$E$64:$E$139,ROWS($B$65:B78))) ->  | D78: =IF(B78="","",INDEX(Inputs!$D$64:$D$139,ROWS($B$65:B78))) -> 
B79: =IF(ROWS($B$65:B79)<=Inputs!$D$59,INDEX(Inputs!$A$64:$A$139,ROWS($B$65:B79)),"") ->  | C79: =IF(B79="","",INDEX(Inputs!$E$64:$E$139,ROWS($B$65:B79))) ->  | D79: =IF(B79="","",INDEX(Inputs!$D$64:$D$139,ROWS($B$65:B79))) -> 
B80: =IF(ROWS($B$65:B80)<=Inputs!$D$59,INDEX(Inputs!$A$64:$A$139,ROWS($B$65:B80)),"") ->  | C80: =IF(B80="","",INDEX(Inputs!$E$64:$E$139,ROWS($B$65:B80))) ->  | D80: =IF(B80="","",INDEX(Inputs!$D$64:$D$139,ROWS($B$65:B80))) -> 
B81: =IF(ROWS($B$65:B81)<=Inputs!$D$59,INDEX(Inputs!$A$64:$A$139,ROWS($B$65:B81)),"") ->  | C81: =IF(B81="","",INDEX(Inputs!$E$64:$E$139,ROWS($B$65:B81))) ->  | D81: =IF(B81="","",INDEX(Inputs!$D$64:$D$139,ROWS($B$65:B81))) -> 
B82: =IF(ROWS($B$65:B82)<=Inputs!$D$59,INDEX(Inputs!$A$64:$A$139,ROWS($B$65:B82)),"") ->  | C82: =IF(B82="","",INDEX(Inputs!$E$64:$E$139,ROWS($B$65:B82))) ->  | D82: =IF(B82="","",INDEX(Inputs!$D$64:$D$139,ROWS($B$65:B82))) -> 
B83: =IF(ROWS($B$65:B83)<=Inputs!$D$59,INDEX(Inputs!$A$64:$A$139,ROWS($B$65:B83)),"") ->  | C83: =IF(B83="","",INDEX(Inputs!$E$64:$E$139,ROWS($B$65:B83))) ->  | D83: =IF(B83="","",INDEX(Inputs!$D$64:$D$139,ROWS($B$65:B83))) -> 
B84: =IF(ROWS($B$65:B84)<=Inputs!$D$59,INDEX(Inputs!$A$64:$A$139,ROWS($B$65:B84)),"") ->  | C84: =IF(B84="","",INDEX(Inputs!$E$64:$E$139,ROWS($B$65:B84))) ->  | D84: =IF(B84="","",INDEX(Inputs!$D$64:$D$139,ROWS($B$65:B84))) -> 
B85: =IF(ROWS($B$65:B85)<=Inputs!$D$59,INDEX(Inputs!$A$64:$A$139,ROWS($B$65:B85)),"") ->  | C85: =IF(B85="","",INDEX(Inputs!$E$64:$E$139,ROWS($B$65:B85))) ->  | D85: =IF(B85="","",INDEX(Inputs!$D$64:$D$139,ROWS($B$65:B85))) -> 
D87: Total: | E87: =SUM(E65:INDEX(E:E,64+Inputs!$D$59)) -> 613051.3964
D89: Three Year Estimated Loss Pick Containment Amount: | E89: =E87+E62+E37 -> 1987207.68
A91: Notes
A92: =C8 -> -1 | B92: From RPA.
A93: =D8 -> -2 | B93: Estimated Annual Remuneration from Extension of
B94: Information Page of guaranteed cost policy for given
B95: year of three year period.
A96: =E8 -> -3 | B96: ="By class, ("&-D8&") / 100 x ("&-C8&")" -> By class, (2) / 100 x (1)

Sheet Actual Losses
A1: =Inputs!A1 -> California Insurance Company Rehabilitation Plan
A2: =Inputs!A2 -> Options to Settle Litigation Related to XYZ Company
A3: =Inputs!A3 -> EquityComp and SolutionOne Programs and RPA
A5: Option 3 - Actual Losses
G6: Data as of
G7: 2025-12-31
C9: -1 | D9: =C9-1 -> -2 | E9: -3 | F9: -4 | G9: -5 | H9: =G9-1 -> -6 | I9: =H9-1 -> -7 | J9: =I9-1 -> -8 | K9: =J9-1 -> -9 | L9: =K9-1 -> -10
C11: Policy | D11: Policy | G11: Age-to- | J11: IBNR | K11: IBNR
C12: Effective | D12: Expiry | F12: Maturity | G12: Ultimate | H12: Paid | I12: Case | J12: Reserves | K12: Reserves | L12: Actual
C13: Date | D13: Date | E13: Midpoint | F13: (in months) | G13: Factor | H13: Losses | I13: Reserves | J13: Undiscounted | K13: Discounted | L13: Losses
A15: Policy Year 1: | C15: =Inputs!D9 -> 2013-06-01 | D15: =Inputs!D11 -> 2014-05-31 | E15: =(((D15)-(C15))/2)+(C15)-1 -> 2013-11-29 | F15: =ROUND((_xlfn.DAYS(G$7,E15)/365*12)+6,0) -> 151 | G15: =ROUND(VLOOKUP(F15,'Interpolated Development'!C13:E149,3,FALSE),4) -> 1.0341 | H15: =Inputs!D31 -> 66447 | I15: =Inputs!D37 -> 0 | J15: =(G15-1)*(H15+I15) -> 2265.8427 | K15: =J15*0.9 -> 2039.25843 | L15: =SUM(H15,I15,K15) -> 68486.25843
A17: Policy Year 2: | C17: =Inputs!D13 -> 2014-06-01 | D17: =Inputs!D15 -> 2015-05-31 | E17: =(((D17)-(C17))/2)+(C17)-1 -> 2014-11-29 | F17: =ROUND((_xlfn.DAYS(G$7,E17)/365*12)+6,0) -> 139 | G17: =ROUND(VLOOKUP(F17,'Interpolated Development'!C15:E151,3,FALSE),4) -> 1.0363 | H17: =Inputs!D33 -> 1994 | I17: =Inputs!C32 -> 0 | J17: =(G17-1)*(H17+I17) -> 72.3822 | K17: =J17*0.9 -> 65.14398 | L17: =SUM(H17,I17,K17) -> 2059.14398
A19: Policy Year 3: | C19: =Inputs!D17 -> 2015-06-01 | D19: =Inputs!D19 -> 2016-05-30 | E19: =(((D19)-(C19))/2)+(C19)-1 -> 2015-11-29 | F19: =ROUND((_xlfn.DAYS(G$7,E19)/365*12)+6,0) -> 127 | G19: =ROUND(VLOOKUP(F19,'Interpolated Development'!C17:E153,3,FALSE),4) -> 1.0386 | H19: =Inputs!D35 -> 58904 | I19: =Inputs!C34 -> 0 | J19: =(G19-1)*(H19+I19) -> 2273.6944 | K19: =J19*0.9 -> 2046.32496 | L19: =SUM(H19,I19,K19) -> 60950.32496
G21: =L9-1 -> -11 | K21: Total | L21: =SUM(L15:L19) -> 131495.7274
G23: =G21-1 -> -12 | K23: Three Year Loss Pick Containment Amount: | L23: =Inputs!D27 -> 1931656
G25: =G23-1 -> -13 | K25: Aggregate Retention Factor: | L25: =Inputs!D29 -> 0.94
G27: =G25-1 -> -14 | K27: Aggregate Retention: | L27: =L23*L25 -> 1815756.64
G29: =G27-1 -> -15 | K29: Actual Losses subject to Aggregate Retention: | L29: =MIN(L27,L21) -> 131495.7274
A31: Notes:
A32: =C9 -> -1 | B32: Provided by CIC.
A33: =A32-1 -> -2 | B33: Provided by CIC.
A34: =A33-1 -> -3 | B34: Midpoint of (1) and (2).
A35: -4 | B35: Number of months from Column (3) to December 31, 2025.
A36: -5 | B36: From Interpolated Development tab using Column (4).
A37: -6 | B37: Provided by CIC.
A38: =A37-1 -> -7 | B38: Provided by CIC.
A39: -8 | B39: [(5) - 1.0] x [(6) + (7)]
A40: =A39-1 -> -9 | B40: (8) x 0.9, per Schedule 2.6, Section IV, Subsection 3.c.vii. of Conservator Rehabilitation Plan.
A41: =A40-1 -> -10 | B41: (6) + (7) + (9)
A42: =A41-1 -> -11 | B42: Sum of Column (10).
A43: =A42-1 -> -12 | B43: Provided by CIC.
A44: -13 | B44: Provided by CIC.
A45: -14 | B45: (12) x (13)
A46: =A45-1 -> -15 | B46: Minimum of (11) and (14).

Sheet Loss and DCCE Development
A1: =Inputs!A1 -> California Insurance Company Rehabilitation Plan
A2: =Inputs!A2 -> Options to Settle Litigation Related to XYZ Company
A3: =Inputs!A3 -> EquityComp and SolutionOne Programs and RPA
A5: Option 2 - Incurred Loss and DCCE Development Pattern
A7: Accident | B7: Maturity (in months)
A8: Year | B8: 12 | C8: 24 | D8: 36 | E8: 48 | F8: 60 | G8: 72 | H8: 84 | I8: 96 | J8: 108 | K8: 120
A9: 2009 | B9: 37492 | C9: 51558 | D9: 54328 | E9: 58689 | F9: 57827 | G9: 57970 | H9: 55834 | I9: 56584 | J9: 57617 | K9: 58215
A10: 2010 | B10: 39200 | C10: 54117 | D10: 62865 | E10: 63471 | F10: 65244 | G10: 62197 | H10: 60670 | I10: 61155 | J10: 61876
A11: 2011 | B11: 46760 | C11: 67587 | D11: 72296 | E11: 79403 | F11: 78228 | G11: 77848 | H11: 78213 | I11: 79408
A12: 2012 | B12: 55142 | C12: 81675 | D12: 99409 | E12: 97682 | F12: 99510 | G12: 101902 | H12: 101565
A13: 2013 | B13: 76940 | C13: 130887 | D13: 145430 | E13: 154995 | F13: 163077 | G13: 166385
A14: 2014 | B14: 113867 | C14: 172795 | D14: 206747 | E14: 222794 | F14: 228952
A15: 2015 | B15: 113068 | C15: 190975 | D15: 232527 | E15: 244724
A16: 2016 | B16: 107825 | C16: 181017 | D16: 202906
A17: 2017 | B17: 92355 | C17: 144045
A18: 2018 | B18: 74215
B20: Development Factors
B21: =B8&"-"&C8 -> 12-24 | C21: =C8&"-"&D8 -> 24-36 | D21: 36-48 | E21: 48-60 | F21: 60-72 | G21: 72-84 | H21: 84-96 | I21: 96-108 | J21: 108-120
A22: 2009 | B22: =C9/B9 -> 1.37517337 | C22: =D9/C9 -> 1.053725901 | D22: 1.080271683 | E22: 0.9853124095 | F22: 1.002472893 | G22: 0.9631533552 | H22: 1.013432675 | I22: 1.018256044 | J22: 1.010378881
A23: 2010 | B23: 1.380535714 | C23: =D10/C10 -> 1.161649759 | D23: 1.009639704 | E23: 1.027934017 | F23: 0.9532983876 | G23: 0.9754489766 | H23: 1.007994066 | I23: 1.011789715
A24: 2011 | B24: 1.445402053 | C24: 1.069673162 | D24: 1.098304194 | E24: 0.9852020705 | F24: 0.9951424043 | G24: 1.004688624 | H24: 1.01527879
A25: 2012 | B25: 1.481175873 | C25: =D12/C12 -> 1.217128864 | D25: =E12/D12 -> 0.9826273275 | E25: =F12/E12 -> 1.018713786 | F25: =G12/F12 -> 1.024037785 | G25: =H12/G12 -> 0.996692901
A26: 2013 | B26: 1.701156746 | C26: =D13/C13 -> 1.111111111 | D26: =E13/D13 -> 1.065770474 | E26: =F13/E13 -> 1.052143618 | F26: =G13/F13 -> 1.020284896
A27: 2014 | B27: 1.517516049 | C27: =D14/C14 -> 1.196487167 | D27: =E14/D14 -> 1.077616604 | E27: =F14/E14 -> 1.027639883
A28: 2015 | B28: 1.689027842 | C28: =D15/C15 -> 1.217578217 | D28: =E15/D15 -> 1.052454124
A29: 2016 | B29: 1.678803617 | C29: =D16/C16 -> 1.120922344
A30: 2017 | B30: 1.55968816
K31: Tail
A32: All-Year Denominator
A33: Weighted Average | B33: =SUM(C$9:C17)/SUM(B$9:B17) -> 1.574243865 | C33: =SUM(D$9:D16)/SUM(C$9:C16) -> 1.156775495 | D33: =SUM(E$9:E15)/SUM(D$9:D15) -> 1.0551235 | E33: =SUM(F$9:F14)/SUM(E$9:E14) -> 1.023342993 | F33: =SUM(G$9:G13)/SUM(F$9:F13) -> 1.005208176 | G33: =SUM(H$9:H12)/SUM(G$9:G12) -> 0.9878799801 | H33: =SUM(I$9:I11)/SUM(H$9:H11) -> 1.01247965 | I33: =SUM(J$9:J10)/SUM(I$9:I10) -> 1.014897358 | J33: =SUM(K$9:K9)/SUM(J$9:J9) -> 1.010378881 | K33: ='Tail Factor'!H12 -> 1.04
A34: Final Age-to-Ultimate | B34: =PRODUCT(B33:$K$33) -> 2.108297173 | C34: =PRODUCT(C33:$K$33) -> 1.339244332 | D34: =PRODUCT(D33:$K$33) -> 1.157739197 | E34: =PRODUCT(E33:$K$33) -> 1.097254678 | F34: =PRODUCT(F33:$K$33) -> 1.072225721 | G34: =PRODUCT(G33:$K$33) -> 1.066670314 | H34: =PRODUCT(H33:$K$33) -> 1.07975699 | I34: =PRODUCT(I33:$K$33) -> 1.066448091 | J34: =PRODUCT(J33:$K$33) -> 1.050794036 | K34: =PRODUCT(K33:$K$33) -> 1.04
A36: Implied Percent Reported | B36: =1/B34 -> 0.4743164354 | C36: =1/C34 -> 0.7466897383 | D36: 0.8637523915 | E36: 0.9113654467 | F36: 0.932639444 | G36: 0.9374967945 | H36: 0.9261343147 | I36: 0.9376921468 | J36: 0.9516612821 | K36: 0.9615384615
A38: Source: | B38: Each diagonal is based on corresponding CIC Annual Statements from 2009-2018, Schedule P, Part 1 - Workers' Compensation.
B39: Each point along a diagonal is the sum of Schedule P, Part 1 - Workers' Compensation Columns (4), (6), (13) and (17) for
B40: the corresponding accident period from the corresponding Annual Statement.
A42: Notes: | B42: Tail Factor is from Tail Factor tab Column (7).
B43: Implied percent reported is 1.0 / Final Age-to-Ultimate.

Sheet Tail Factor
A1: =Inputs!A1 -> California Insurance Company Rehabilitation Plan
A2: =Inputs!A2 -> Options to Settle Litigation Related to XYZ Company
A3: =Inputs!A3 -> EquityComp and SolutionOne Programs and RPA
A5: Option 2 - Tail Factor Calculation
B7: -1 | C7: =B7-1 -> -2 | D7: -3 | E7: -4 | F7: -5 | G7: -6 | H7: -7
G9: Indicated | H9: Selected
C10: Case | D10: Ultimate | E10: Unadjusted | F10: Maturity | G10: CDF at | H10: Tail
B11: IBNR | C11: Incurred | D11: Losses | E11: Tail Factor | F11: Adjustment | G11: 120 Months | H11: Factor
A12: 2009 | B12: 2009 | C12: ='Loss and DCCE Development'!K9 -> 58215 | D12: =B12+C12 -> 60224 | E12: =D12/C12 -> 1.034510006 | F12: 1 | G12: =E12/F12 -> 1.034510006 | H12: =ROUND(AVERAGE(G12:G14),3) -> 1.04
A13: 2010 | B13: 3294 | C13: ='Loss and DCCE Development'!J10 -> 61876 | D13: =B13+C13 -> 65170 | E13: =D13/C13 -> 1.053235503 | F13: ='Loss and DCCE Development'!J33 -> 1.010378881 | G13: =E13/F13 -> 1.042416387
A14: 2011 | B14: 5492 | C14: ='Loss and DCCE Development'!I11 -> 79408 | D14: 84900 | E14: 1.069161797 | F14: =('Loss and DCCE Development'!I33*'Loss and DCCE Development'!J33) -> 1.025430857 | G14: =E14/F14 -> 1.042646406
A16: Notes:
A17: =B7 -> -1 | B17: From CIC 2018 Annual Statement, Schedule P, Part 1 - Workers' Compensation
B18: Column (15) plus Column (19).
A19: =A17-1 -> -2 | B19: From Loss and DCCE Development tab, last diagonal.
A20: =A19-1 -> -3 | B20: (1) + (2)
A21: -4 | B21: (3) / (2)
A22: -5 | B22: 2010 equals 108-120 All Year Denominator Weighted-Average in Loss and DCCE
B23: Development tab. 2011 equals product of 96-108 and 108-120 All Year Denominator
B24: Weighted-Averages in Loss and DCCE Development tab.
A25: =A22-1 -> -6 | B25: (4) / (5)
A26: -7 | B26: Average of Column (6)

Sheet Interpolated Development
A1: =Inputs!A1 -> California Insurance Company Rehabilitation Plan
A2: =Inputs!A2 -> Options to Settle Litigation Related to XYZ Company
A3: =Inputs!A3 -> EquityComp and SolutionOne Programs and RPA
A5: Option 2 - Interpolated Incurred Loss and DCCE Development Pattern
C7: =-1 -> -1 | D7: =C7-1 -> -2 | E7: =D7-1 -> -3
E9: Implied
D10: Estimated | E10: Cumulative
C11: Maturity | D11: Percent | E11: Development
C12: (in months) | D12: Reported | E12: Factor | G12: Notes:
C13: 60 | D13: ='Loss and DCCE Development'!F36 -> 0.932639444 | E13: =1/D13 -> 1.072225721 | G13: Bold entries in Column (2) from "Loss and DCCE
C14: =C13+1 -> 61 | D14: =$D$13*($D$25/$D$13)^((C14-$C$13)/(12)) -> 0.9330432602 | E14: =1/D14 -> 1.071761667 | G14: Development" tab corresponding Implied Percent Reported row.
C15: 62 | D15: =$D$13*($D$25/$D$13)^((C15-60)/(12)) -> 0.9334472512 | E15: 1.071297814
C16: 63 | D16: 0.9338514171 | E16: 1.070834162 | G16: Non-bold entries in Column (2) based on exponential interpolation.
C17: 64 | D17: 0.9342557581 | E17: 1.070370711
C18: 65 | D18: 0.9346602741 | E18: 1.06990746 | G18: Column (3) = 1 / Column (2) for Maturity less than or equal to 120.
C19: 66 | D19: 0.9350649652 | E19: 1.06944441 | G19: For Maturity greater than 120, Column (3) is judgmentally selected as the
C20: 67 | D20: 0.9354698316 | E20: 1.06898156 | G20: 120 month estimated percent reported decayed at 0.995.
C21: 68 | D21: 0.9358748733 | E21: 1.068518911
C22: 69 | D22: 0.9362800903 | E22: 1.068056461
C23: 70 | D23: 0.9366854828 | E23: 1.067594212
C24: 71 | D24: 0.9370910509 | E24: 1.067132163
C25: 72 | D25: ='Loss and DCCE Development'!G36 -> 0.9374967945 | E25: 1.066670314
C26: 73 | D26: =$D$25*($D$37/$D$25)^((C26-$C$25)/(12)) -> 0.9365446202 | E26: 1.067754785
C27: 74 | D27: 0.935593413 | E27: 1.06884036
C28: 75 | D28: 0.9346431719 | E28: 1.069927037
C29: 76 | D29: 0.9336938959 | E29: 1.07101482
C30: 77 | D30: 0.932745584 | E30: 1.072103709
C31: 78 | D31: 0.9317982353 | E31: 1.073193704
C32: 79 | D32: 0.9308518488 | E32: 1.074284808
C33: 80 | D33: 0.9299064235 | E33: 1.075377022
C34: 81 | D34: 0.9289619584 | E34: 1.076470345
C35: 82 | D35: 0.9280184525 | E35: 1.07756478
C36: 83 | D36: 0.927075905 | E36: 1.078660328
C37: 84 | D37: ='Loss and DCCE Development'!H36 -> 0.9261343147 | E37: 1.07975699
C38: 85 | D38: =$D$37*($D$49/$D$37)^((C38-$C$37)/(12)) -> 0.9270920018 | E38: 1.0786416
C39: 86 | D39: 0.9280506793 | E39: 1.077527362
C40: 87 | D40: 0.9290103481 | E40: 1.076414275
C41: 88 | D41: 0.9299710092 | E41: 1.075302338
C42: 89 | D42: 0.9309326637 | E42: 1.074191549
C43: 90 | D43: 0.9318953127 | E43: 1.073081908
C44: 91 | D44: 0.9328589571 | E44: 1.071973413
C45: 92 | D45: 0.9338235979 | E45: 1.070866063
C46: =C45+1 -> 93 | D46: 0.9347892363 | E46: 1.069759857
C47: 94 | D47: 0.9357558732 | E47: 1.068654794
C48: 95 | D48: 0.9367235097 | E48: 1.067550872
C49: 96 | D49: ='Loss and DCCE Development'!I36 -> 0.9376921468 | E49: 1.066448091
C50: 97 | D50: =$D$49*($D$61/$D$49)^((C50-$C$49)/(12)) -> 0.9388483678 | E50: 1.065134727
C51: 98 | D51: 0.9400060146 | E51: 1.06382298
C52: 99 | D52: 0.9411650888 | E52: 1.062512849
C53: 100 | D53: 0.9423255921 | E53: 1.061204331
C54: 101 | D54: 0.9434875265 | E54: 1.059897425
C55: 102 | D55: 0.9446508935 | E55: 1.058592128
C56: 103 | D56: 0.9458156951 | E56: 1.057288439
C57: 104 | D57: 0.9469819329 | E57: 1.055986355
C58: 105 | D58: 0.9481496087 | E58: 1.054685875
C59: 106 | D59: 0.9493187243 | E59: 1.053386997
C60: 107 | D60: 0.9504892815 | E60: 1.052089718
C61: 108 | D61: ='Loss and DCCE Development'!J36 -> 0.9516612821 | E61: 1.050794036
C62: 109 | D62: =$D$61*($D$73/$D$61)^((C62-$C$61)/(12)) -> 0.9524804907 | E62: 1.04989027
C63: 110 | D63: 0.9533004045 | E63: 1.048987282
C64: 111 | D64: 0.9541210241 | E64: 1.04808507
C65: 112 | D65: 0.95494235 | E65: 1.047183634
C66: 113 | D66: 0.955764383 | E66: 1.046282973
C67: 114 | D67: 0.9565871236 | E67: 1.045383087
C68: 115 | D68: 0.9574105725 | E68: 1.044483975
C69: 116 | D69: 0.9582347302 | E69: 1.043585636
C70: 117 | D70: 0.9590595973 | E70: 1.042688069
C71: 118 | D71: 0.9598851745 | E71: 1.041791275
C72: 119 | D72: 0.9607114624 | E72: 1.040895252
C73: 120 | D73: ='Loss and DCCE Development'!K36 -> 0.9615384615 | E73: 1.04
C74: 121 | D74: =1/E74 -> 0.9617270411 | E74: =E73^0.995 -> 1.039796072
C75: 122 | D75: =1/E75 -> 0.9619147146 | E75: =E74^0.995 -> 1.039593204
C76: 123 | D76: 0.962101486 | E76: 1.039391389
C77: 124 | D77: 0.9622873595 | E77: 1.039190622
C78: =C77+1 -> 125 | D78: 0.9624723393 | E78: 1.038990898
C79: 126 | D79: 0.9626564295 | E79: 1.03879221
C80: 127 | D80: 0.9628396342 | E80: 1.038594553
C81: 128 | D81: 0.9630219575 | E81: 1.038397922
C82: 129 | D82: 0.9632034034 | E82: 1.038202312
C83: 130 | D83: 0.9633839761 | E83: 1.038007715
C84: 131 | D84: 0.9635636794 | E84: 1.037814128
C85: 132 | D85: 0.9637425176 | E85: 1.037621545
C86: 133 | D86: 0.9639204944 | E86: 1.03742996
C87: 134 | D87: 0.9640976141 | E87: 1.037239368
C88: 135 | D88: 0.9642738804 | E88: 1.037049764
C89: 136 | D89: 0.9644492973 | E89: 1.036861142
C90: 137 | D90: 0.9646238689 | E90: 1.036673498
C91: 138 | D91: 0.964797599 | E91: 1.036486825
C92: 139 | D92: 0.9649704914 | E92: 1.036301119
C93: 140 | D93: 0.9651425502 | E93: 1.036116375
C94: 141 | D94: 0.9653137791 | E94: 1.035932587
C95: 142 | D95: 0.965484182 | E95: 1.03574975
C96: 143 | D96: 0.9656537628 | E96: 1.035567859
C97: 144 | D97: 0.9658225252 | E97: 1.03538691
C98: 145 | D98: 0.965990473 | E98: 1.035206897
C99: 146 | D99: 0.9661576102 | E99: 1.035027815
C100: 147 | D100: 0.9663239403 | E100: 1.034849659
C101: 148 | D101: 0.9664894672 | E101: 1.034672424
C102: 149 | D102: 0.9666541946 | E102: 1.034496106
C103: 150 | D103: 0.9668181263 | E103: 1.034320699
C104: 151 | D104: 0.9669812659 | E104: 1.034146198
C105: 152 | D105: 0.9671436171 | E105: 1.0339726
C106: 153 | D106: 0.9673051836 | E106: 1.033799898
C107: 154 | D107: 0.967465969 | E107: 1.033628088
C108: 155 | D108: 0.9676259771 | E108: 1.033457166
C109: 156 | D109: 0.9677852113 | E109: 1.033287126
C110: =C109+1 -> 157 | D110: 0.9679436755 | E110: 1.033117965
C111: 158 | D111: 0.968101373 | E111: 1.032949676
C112: 159 | D112: 0.9682583076 | E112: 1.032782257
C113: 160 | D113: 0.9684144827 | E113: 1.032615701
C114: 161 | D114: 0.968569902 | E114: 1.032450005
C115: 162 | D115: 0.9687245689 | E115: 1.032285164
C116: 163 | D116: 0.968878487 | E116: 1.032121172
C117: 164 | D117: 0.9690316598 | E117: 1.031958027
C118: 165 | D118: 0.9691840907 | E118: 1.031795723
C119: 166 | D119: 0.9693357833 | E119: 1.031634256
C120: 167 | D120: 0.969486741 | E120: 1.031473622
C121: 168 | D121: 0.9696369673 | E121: 1.031313815
C122: 169 | D122: 0.9697864655 | E122: 1.031154832
C123: 170 | D123: 0.9699352391 | E123: 1.030996668
C124: 171 | D124: 0.9700832915 | E124: 1.030839319
C125: 172 | D125: 0.970230626 | E125: 1.030682781
C126: 173 | D126: 0.9703772461 | E126: 1.030527049
C127: 174 | D127: 0.9705231551 | E127: 1.030372119
C128: 175 | D128: 0.9706683563 | E128: 1.030217987
C129: 176 | D129: 0.9708128531 | E129: 1.030064648
C130: 177 | D130: 0.9709566487 | E130: 1.029912099
C131: 178 | D131: 0.9710997465 | E131: 1.029760335
C132: 179 | D132: 0.9712421497 | E132: 1.029609352
C133: 180 | D133: 0.9713838617 | E133: 1.029459145
C134: 181 | D134: 0.9715248856 | E134: 1.029309712
C135: 182 | D135: 0.9716652247 | E135: 1.029161047
C136: 183 | D136: 0.9718048822 | E136: 1.029013147
C137: 184 | D137: 0.9719438614 | E137: 1.028866007
C138: 185 | D138: 0.9720821654 | E138: 1.028719624
C139: 186 | D139: =1/E139 -> 0.9722197974 | E139: =E138^0.995 -> 1.028573994
C140: 187 | D140: 0.9723567606 | E140: 1.028429112
C141: 188 | D141: 0.9724930581 | E141: 1.028284975
C142: =C141+1 -> 189 | D142: 0.9726286931 | E142: 1.028141579
C143: 190 | D143: 0.9727636687 | E143: 1.027998919
C144: 191 | D144: 0.972897988 | E144: 1.027856993
C145: 192 | D145: 0.9730316542 | E145: 1.027715795
C146: 193 | D146: 0.9731646702 | E146: 1.027575323
C147: 194 | D147: 0.9732970392 | E147: 1.027435572
C148: 195 | D148: 0.9734287642 | E148: 1.027296539
C149: 196 | D149: 0.9735598483 | E149: 1.027158219

Sheet Surcharges - Policy Year 1
A1: =Inputs!A1 -> California Insurance Company Rehabilitation Plan
A2: =Inputs!A2 -> Options to Settle Litigation Related to XYZ Company
A3: =Inputs!A3 -> EquityComp and SolutionOne Programs and RPA
A5: Option 3 - Surcharges - Policy Year 1
D7: -1 | E7: =D7-1 -> -2 | F7: -3
D9: Policy | E9: Policy | F9: Guaranteed
D10: Effective | E10: Expiry | F10: Cost
D11: Date | E11: Date | F11: Premium
D13: =Inputs!D9 -> 2013-06-01 | E13: =Inputs!D11 -> 2014-05-31 | F13: =Inputs!D21 -> 680539
A15: =F7-1 -> -4 | E15: CIGA California Domiciled Insureds: | F15: =ROUND(E16*F$13,0) -> 13611 | G15: (3) x (5)
A16: =A15-1 -> -5 | E16: 0.02 | G16: From first guaranteed cost policy.
A17: -6 | E17: Workers Compensation Fraud Surcharge: | F17: =ROUND(E18*F$13,0) -> 2593 | G17: (3) x (7)
A18: -7 | E18: 0.00381 | G18: From first guaranteed cost policy.
A19: -8 | E19: User Funding Rate: | F19: =ROUND(E20*F$13,0) -> 9326 | G19: (3) x (9)
A20: -9 | E20: 0.013704 | G20: From first guaranteed cost policy.
A21: -10 | E21: Uninsured Employers Fund: | F21: =ROUND(E22*F$13,0) -> 2321 | G21: (3) x (11)
A22: -11 | E22: 0.00341 | G22: From first guaranteed cost policy.
A23: -12 | E23: Subsequent Injuries Benefit Fund: | F23: =ROUND(E24*F$13,0) -> 1162 | G23: (3) x (13)
A24: -13 | E24: 0.001707 | G24: From first guaranteed cost policy.
A25: -14 | E25: Occupational Safety & Health Fund: | F25: =ROUND(E26*F$13,0) -> 1946 | G25: (3) x (15)
A26: -15 | E26: 0.002859 | G26: From first guaranteed cost policy.
A27: -16 | E27: Labor Enforcement & Compliance Fund: | F27: =ROUND(E28*F$13,0) -> 1869 | G27: (3) x (17)
A28: -17 | E28: 0.002747 | G28: From first guaranteed cost policy.
A30: =A28-1 -> -18 | E30: Total Policy Year 1 Surcharges | F30: =SUM(F15:F27) -> 32828 | G30: Sum (4), (6), (8), (10), (12), (14), (16)
A33: Notes:
A34: =D7 -> -1 | C34: Provided by CIC.
A35: =A34-1 -> -2 | C35: Provided by CIC.
A36: =A35-1 -> -3 | C36: Provided by CIC. Excludes Taxes and Assessments.

Sheet Surcharges - Policy Year 2
A1: =Inputs!A1 -> California Insurance Company Rehabilitation Plan
A2: =Inputs!A2 -> Options to Settle Litigation Related to XYZ Company
A3: =Inputs!A3 -> EquityComp and SolutionOne Programs and RPA
A5: Option 3 - Surcharges - Policy Year 2
D7: -1 | E7: =D7-1 -> -2 | F7: -3
D9: Policy | E9: Policy | F9: Guaranteed
D10: Effective | E10: Expiry | F10: Cost
D11: Date | E11: Date | F11: Premium
D13: =Inputs!D15 -> 2015-05-31 | E13: =Inputs!D15 -> 2015-05-31 | F13: =Inputs!D23 -> 691795
A15: =F7-1 -> -4 | E15: CIGA California Domiciled Insureds: | F15: =ROUND(E16*F$13,0) -> 15565 | G15: (3) x (5)
A16: =A15-1 -> -5 | E16: =0.0225 -> 0.0225 | G16: From second guaranteed cost policy.
A17: -6 | E17: Workers Compensation Fraud Surcharge: | F17: =ROUND(E18*F$13,0) -> 1760 | G17: (3) x (7)
A18: -7 | E18: 0.002544 | G18: From second guaranteed cost policy.
A19: -8 | E19: User Funding Rate: | F19: =ROUND(E20*F$13,0) -> 8472 | G19: (3) x (9)
A20: -9 | E20: 0.012247 | G20: From second guaranteed cost policy.
A21: -10 | E21: Uninsured Employers Fund: | F21: =ROUND(E22*F$13,0) -> 1109 | G21: (3) x (11)
A22: -11 | E22: 0.001603 | G22: From second guaranteed cost policy.
A23: -12 | E23: Subsequent Injuries Benefit Fund: | F23: =ROUND(E24*F$13,0) -> 893 | G23: (3) x (13)
A24: -13 | E24: 0.001291 | G24: From second guaranteed cost policy.
A25: -14 | E25: Occupational Safety & Health Fund: | F25: =ROUND(E26*F$13,0) -> 1498 | G25: (3) x (15)
A26: -15 | E26: 0.002166 | G26: From second guaranteed cost policy.
A27: -16 | E27: Labor Enforcement & Compliance Fund: | F27: =ROUND(E28*F$13,0) -> 1696 | G27: (3) x (17)
A28: -17 | E28: 0.002452 | G28: From second guaranteed cost policy.
A30: =A28-1 -> -18 | E30: Total Policy Year 2 Surcharges | F30: =SUM(F15:F27) -> 30993 | G30: Sum (4), (6), (8), (10), (12), (14), (16)
A33: Notes:
A34: =D7 -> -1 | C34: Provided by CIC.
A35: =A34-1 -> -2 | C35: Provided by CIC.
A36: =A35-1 -> -3 | C36: Provided by CIC. Excludes Taxes and Assessments.

Sheet Surcharges - Policy Year 3
A1: =Inputs!A1 -> California Insurance Company Rehabilitation Plan
A2: =Inputs!A2 -> Options to Settle Litigation Related to XYZ Company
A3: =Inputs!A3 -> EquityComp and SolutionOne Programs and RPA
A5: Option 3 - Surcharges - Policy Year 3
D7: -1 | E7: =D7-1 -> -2 | F7: -3
D9: Policy | E9: Policy | F9: Guaranteed
D10: Effective | E10: Expiry | F10: Cost
D11: Date | E11: Date | F11: Premium
D13: =Inputs!D17 -> 2015-06-01 | E13: =Inputs!D19 -> 2016-05-30 | F13: =Inputs!D25 -> 608816
A15: =F7-1 -> -4 | E15: CIGA California Domiciled Insureds: | F15: =ROUND(E16*F$13,0) -> 11166 | G15: (3) x (5)
A16: =A15-1 -> -5 | E16: 0.018341 | G16: From third guaranteed cost policy.
A17: -6 | E17: Workers Compensation Fraud Surcharge: | F17: =ROUND(E18*F$13,0) -> 1104 | G17: (3) x (7)
A18: -7 | E18: 0.001814 | G18: From third guaranteed cost policy.
A19: -8 | E19: User Funding Rate: | F19: =ROUND(E20*F$13,0) -> 4323 | G19: (3) x (9)
A20: -9 | E20: 0.0071 | G20: From third guaranteed cost policy.
A21: -10 | E21: Uninsured Employers Fund: | F21: =ROUND(E22*F$13,0) -> 717 | G21: (3) x (11)
A22: -11 | E22: 0.001177 | G22: From third guaranteed cost policy.
A23: -12 | E23: Subsequent Injuries Benefit Fund: | F23: =ROUND(E24*F$13,0) -> 328 | G23: (3) x (13)
A24: -13 | E24: 0.000538 | G24: From third guaranteed cost policy.
A25: -14 | E25: Occupational Safety & Health Fund: | F25: =ROUND(E26*F$13,0) -> 1429 | G25: (3) x (15)
A26: -15 | E26: 0.002348 | G26: From third guaranteed cost policy.
A27: -16 | E27: Labor Enforcement & Compliance Fund: | F27: =ROUND(E28*F$13,0) -> 916 | G27: (3) x (17)
A28: -17 | E28: 0.001505 | G28: From third guaranteed cost policy.
A30: =A28-1 -> -18 | E30: Total Policy Year 3 Surcharges | F30: =SUM(F15:F27) -> 19983 | G30: Sum (4), (6), (8), (10), (12), (14), (16)
A33: Notes:
A34: =D7 -> -1 | C34: Provided by CIC.
A35: =A34-1 -> -2 | C35: Provided by CIC.
A36: =A35-1 -> -3 | C36: Provided by CIC. Excludes Taxes and Assessments.

Sheet Inputs
A1: California Insurance Company Rehabilitation Plan
A2: ="Options to Settle Litigation Related to " & Insured -> Options to Settle Litigation Related to XYZ Company
A3: EquityComp and SolutionOne Programs and RPA
A5: Option 3 - Inputs
C7: Insured: | D7: XYZ Company
C9: First Policy Effective Date: | D9: 2013-06-01
C11: First Policy Expiry Date: | D11: =D9+(364) -> 2014-05-31
C13: Second Policy Effective Date: | D13: 2014-06-01
C15: Second Policy Expiry Date: | D15: =D13+(364) -> 2015-05-31
C17: Third Policy Effective Date: | D17: 2015-06-01
C19: Third Policy Expiry Date: | D19: =D17+(364) -> 2016-05-30
C21: Guaranteed Cost Premium - Year 1, excluding surcharges | D21: 680539
C23: Guaranteed Cost Premium - Year 2, excluding surcharges | D23: 691795
C25: Guaranteed Cost Premium - Year 3, excluding surcharges | D25: 608816
C27: Three-Year Loss Pick Containment Amount: | D27: 1931656
C29: Aggregate Retention (Loss Limit): | D29: 0.94
C31: First Policy, Paid Losses as of 12/31/2025: | D31: 66447
C33: Second Policy, Paid Losses as of 12/31/2025: | D33: 1994
C35: Third Policy, Paid Losses as of 12/31/2025: | D35: 58904
C37: First Policy, Case Reserves as of 12/31/2025: | D37: 0
C39: Second Policy, Case Reserves as of 12/31/2025: | D39: 0
C41: Third Policy, Case Reserves as of 12/31/2025: | D41: 0
C43: Second Policy, Paid Losses as of 12/31/2025: | D43: 1994
C45: Third Policy, Paid Losses as of 12/31/2025: | D45: 58904
C47: First Policy, Case Reserves as of 12/31/2025: | D47: 0
C49: Second Policy, Case Reserves as of 12/31/2025: | D49: 0
C51: Third Policy, Case Reserves as of 12/31/2025: | D51: 0
C53: Total Payments: | D53: 1731228
C55: Restitution Payment Date | D55: 2026-11-01
B58: Year 1 | C58: Year 2 | D58: Year 3
A59: # Class Codes | B59: 2 | C59: 2 | D59: 2
E61: Loss Pick
E62: Containment
A63: Class Codes | B63: Payroll | C63: Payroll | D63: Payroll | E63: Rate
A64: CA3831 | B64: 8000000 | C64: 8108736 | D64: 7101861 | E64: 8.11
A65: CA8810 | B65: 2800000 | C65: 3530635 | D65: 3466399 | E65: 1.07
